bitfinex/quotes_ETHUSD_20250913
["timestamp","ask_amount","ask_price","bid_price","bid_amount"]
[1757753611111,3.81249,4718.6,4718.5,13.84953599]
[1757753611419,3.81249,4718.6,4718.5,13.214]
[1757753611658,3.81249,4718.6,4718.5,13.84959254]
[1757753612200,3.24359,4718.6,4718.5,13.84959254]
[1757753612420,1.43169,4718.6,4718.5,13.84959254]
[1757753612825,0.794,4718.6,4718.5,14.40735278]
[1757753613206,0.794,4718.6,4718.5,14.11295278]
[1757753614140,0.794,4718.6,4718.5,14.86525278]
[1757753614317,0.794,4718.6,4718.5,14.40735278]
[1757753614516,0.794,4718.6,4718.5,16.69795278]
[1757753614908,0.002,4718.6,4718.5,16.69795278]
[1757753615638,0.002,4718.6,4718.5,46.69795278]
[1757753616344,0.002,4718.6,4718.5,46.97452401]
[1757753619808,0.002,4718.6,4718.5,46.69795278]
[1757753620142,0.002,4718.6,4718.5,46.97452401]
[1757753621150,0.002,4718.6,4718.5,46.69795278]
[1757753621745,0.002,4718.6,4718.5,16.69795278]
[1757753622139,0.002,4718.6,4718.5,46.69795278]
[1757753622718,0.002,4718.6,4718.5,43.19095278]
[1757753622919,0.002,4718.6,4718.5,46.70095278]
[1757753624622,0.002,4718.6,4718.5,44.86825278]
[1757753625060,0.002,4718.6,4718.5,44.60489254]
[1757753626556,0.002,4718.6,4718.5,40.34259254]
[1757753626730,0.002,4718.6,4718.5,44.15899254]
[1757753626913,0.002,4718.6,4718.5,44.62439254]
[1757753627120,0.002,4718.6,4718.5,46.49309254]
[1757753630872,0.002,4718.6,4718.5,16.47279254]
[1757753631377,0.002,4718.6,4718.5,46.47279254]
[1757753632032,0.002,4718.6,4718.5,44.15899254]
[1757753633048,0.002,4718.6,4718.5,44.60409254]
[1757753633654,0.002,4718.6,4718.5,46.32629254]
[1757753634544,0.002,4718.6,4718.5,46.58965278]
[1757753636965,0.002,4718.6,4718.5,16.58965278]
[1757753637175,0.002,4718.6,4718.5,14.15899254]
[1757753637359,0.002,4718.6,4718.5,44.15899254]
[1757753638260,0.002,4718.6,4718.5,45.88019254]
[1757753638763,0.002,4718.6,4718.5,46.32529254]
[1757753640987,0.002,4718.6,4718.5,44.60309254]
[1757753642790,0.002,4718.6,4718.5,44.15799254]
[1757753644486,0.002,4718.6,4718.5,14.15799254]
[1757753644883,0.002,4718.6,4718.5,44.15799254]
[1757753645284,0.3074,4718.6,4718.5,43.85159254]
[1757753645889,0.002,4718.6,4718.5,43.85159254]
[1757753646672,1.0994,4718.6,4718.5,40.34259254]
[1757753646911,3.3661,4718.6,4718.5,43.85059254]
[1757753647112,2.9136,4718.6,4718.5,43.85059254]
[1757753647334,1.0994,4718.6,4718.5,43.85059254]
[1757753648088,0.002,4718.6,4718.5,44.14199254]
[1757753648301,0.002,4718.6,4718.5,46.30929254]
[1757753649512,0.002,4718.6,4718.5,16.30929254]
[1757753650005,0.002,4718.6,4718.5,46.30929254]
[1757753651935,0.002,4718.6,4718.5,46.55598612]
[1757753652278,0.002,4718.6,4718.5,46.81505735]
[1757753653408,0.002,4718.6,4718.5,46.92065735]
[1757753656700,0.002,4718.6,4718.5,46.66158612]
[1757753658554,0.002,4718.6,4718.5,46.41489254]
[1757753658749,0.002,4718.6,4718.5,16.41489254]
[1757753659053,0.002,4718.6,4718.5,46.41489254]
[1757753659752,0.002,4718.6,4718.5,16.41489254]
[1757753659953,0.002,4718.6,4718.5,46.41489254]
[1757753660457,0.002,4718.6,4718.5,46.67396377]
[1757753660752,0.002,4718.6,4718.5,40.99866377]
[1757753660915,0.002,4718.6,4718.5,44.14699254]
[1757753661117,0.002,4718.6,4718.5,44.58069254]
[1757753661354,0.002,4718.6,4718.5,42.75039254]
[1757753661598,0.002,4718.6,4718.5,46.26339254]
[1757753666931,0.002,4718.6,4718.5,16.26339254]
[1757753667136,0.002,4718.6,4718.5,46.26339254]
[1757753667964,0.002,4718.6,4718.5,16.51008612]
[1757753668169,0.002,4718.6,4718.5,46.51008612]
[1757753670259,0.002,4718.6,4718.5,46.61568612]
[1757753676186,0.002,4718.6,4718.5,16.61568612]
[1757753676363,0.002,4718.6,4718.5,46.61568612]
[1757753680157,0.002,4718.6,4718.5,47.09577979]
[1757753684880,0.002,4718.6,4718.5,43.07701498]
[1757753685085,0.002,4718.6,4718.5,46.58801498]
[1757753688918,0.002,4718.6,4718.5,43.07701498]
[1757753689295,0.002,4718.6,4718.5,46.58701498]
[1757753689685,0.002,4718.6,4718.5,46.83370856]
[1757753695327,0.002,4718.6,4718.5,47.09277979]
[1757753697501,0.002,4718.6,4718.5,49.75272402]
[1757753697725,0.002,4718.6,4718.5,49.49365279]
[1757753700458,0.00020134,4718.6,4718.5,46.83370856]
[1757753701168,0.00020134,4718.6,4718.5,47.62570856]
[1757753701329,0.00020134,4718.6,4718.5,50.00617979]
[1757753704968,0.00020134,4718.6,4718.5,20.00617979]
[1757753705143,0.00020134,4718.6,4718.5,50.00617979]
[1757753708984,0.00020134,4718.6,4718.5,49.74710856]
[1757753709964,0.00020134,4718.6,4718.5,19.74710856]
[1757753710155,0.00020134,4718.6,4718.5,49.74710856]
[1757753710600,0.002,4719.1,4718.7,0.792]
[1757753710896,0.002,4719.1,4718.9,3.792]
[1757753711091,0.002,4719.1,4719.0,37.5914]
[1757753711262,0.002,4719.1,4719.0,37.697]
[1757753711462,0.002,4719.1,4719.0,38.1576]
[1757753711993,0.002,4719.1,4719.0,39.93306836]
[1757753712194,0.002,4719.1,4719.0,40.17976194]
[1757753713081,0.002,4719.1,4719.0,10.17976194]
[1757753713394,0.002,4719.1,4719.0,9.48896194]
[1757753713954,0.002,4719.1,4719.0,39.48896194]
[1757753715354,0.002,4719.1,4719.0,48.21896194]
[1757753716499,0.002,4719.1,4719.0,49.84596194]
[1757753717235,0.002,4719.1,4719.0,49.83476194]
[1757753719242,0.002,4719.1,4719.0,19.83476194]
[1757753719910,0.002,4719.1,4719.0,18.20776194]
[1757753720111,0.002,4719.1,4719.0,17.22326836]
[1757753720306,0.302,4719.1,4719.0,47.22326836]
[1757753720730,0.36192188,4719.4,4719.1,3.792]
[1757753720927,0.4579,4719.5,4719.3,3.0]
[1757753721134,0.4579,4719.5,4719.4,40.78473921]
[1757753721341,0.1056,4721.1,4719.5,3.0]
[1757753721512,0.1056,4721.1,4719.5,33.0]
[1757753721699,0.302,4719.6,4719.5,33.0]
[1757753721915,0.6549,4719.6,4719.5,33.0]
[1757753722219,0.6549,4719.6,4719.5,33.08466693]
[1757753722837,2.3094,4719.6,4719.5,33.08466693]
[1757753724843,0.302,4719.6,4719.5,33.08466693]
[1757753725017,0.302,4719.6,4719.5,38.16066693]
[1757753726921,0.302,4719.6,4719.5,41.66866693]
[1757753727123,0.302,4719.6,4719.5,38.16066693]
[1757753727332,0.302,4719.6,4719.5,41.66866693]
[1757753727631,0.302,4719.6,4719.5,44.32040614]
[1757753731665,0.002,4719.6,4719.5,42.17443174]
[1757753733028,0.1825,4719.6,4719.5,38.66643174]
[1757753733228,0.1825,4719.6,4719.5,42.17343174]
[1757753733628,0.002,4719.6,4719.5,12.47643174]
[1757753733857,0.002,4719.6,4719.5,44.69523174]
[1757753734632,0.002,4719.6,4719.5,50.78623174]
[1757753734866,0.002,4719.6,4719.5,50.31953174]
[1757753735027,0.002,4719.6,4719.5,50.78623174]
[1757753736438,0.00019379,4719.6,4719.5,50.78623174]
[1757753737772,0.00019379,4719.6,4719.5,20.78623174]
[1757753737968,0.00019379,4719.6,4719.5,50.78623174]
[1757753738148,0.00019379,4719.6,4719.5,50.52716051]
[1757753739045,0.00019379,4719.6,4719.5,48.00536051]
[1757753739770,0.00019379,4719.6,4719.5,18.00536051]
[1757753739961,0.00019379,4719.6,4719.5,48.30836051]
[1757753740362,0.00019379,4719.6,4719.5,48.77506051]
[1757753741251,0.00019379,4719.6,4719.5,48.52836693]
[1757753741646,0.00019379,4719.6,4719.5,48.06166693]
[1757753742050,0.00019379,4719.6,4719.5,50.28046693]
[1757753745243,0.00019379,4719.6,4719.5,47.75866693]
[1757753746449,0.00021284,4719.7,4719.5,50.49966051]
[1757753746653,0.00021284,4719.7,4719.6,36.6116]
[1757753747176,0.00021284,4719.7,4719.6,36.69626656]
[1757753748186,0.00021284,4719.7,4719.6,37.01076656]
[1757753748979,0.00021284,4719.7,4719.6,7.01076656]
[1757753749181,0.00021284,4719.7,4719.6,37.01076656]
[1757753750021,0.00021284,4719.7,4719.6,39.19356656]
[1757753750596,0.00021284,4719.7,4719.6,37.01076656]
[1757753750746,0.00021284,4719.7,4719.6,36.69626656]
[1757753751255,0.19931284,4719.7,4719.6,36.69626656]
[1757753751955,1.92991284,4719.7,4719.6,33.19026656]
[1757753752279,2.38271284,4719.7,4719.6,39.35367497]
[1757753752442,2.38271284,4719.7,4719.6,36.69626656]
[1757753752646,0.19931284,4719.7,4719.6,39.35345615]
[1757753753884,0.19931284,4719.7,4719.6,36.69626656]
[1757753754183,0.19931284,4719.7,4719.6,6.94296014]
[1757753754395,0.00021284,4719.7,4719.6,36.94296014]
[1757753754549,0.00021284,4719.7,4719.6,38.97046014]
[1757753754749,0.00021284,4719.7,4719.6,37.67846014]
[1757753754946,0.00021284,4719.7,4719.6,37.23306014]
[1757753757506,0.00021284,4719.7,4719.6,33.43696014]
[1757753757706,0.00021284,4719.7,4719.6,37.67846014]
[1757753757917,0.00021284,4719.7,4719.6,38.97046014]
[1757753758296,0.00021284,4719.7,4719.6,37.23306014]
[1757753759133,0.00021284,4719.7,4719.6,39.41586014]
[1757753760300,0.00021284,4719.7,4719.6,36.94296014]
[1757753761297,0.00021284,4719.7,4719.6,33.43696014]
[1757753761498,0.19931284,4719.7,4719.6,36.69626656]
[1757753762889,0.00021284,4719.7,4719.6,36.69626656]
[1757753764142,0.4548,4720.1,4719.7,3.0]
[1757753764143,0.002,4720.1,4719.7,3.0]
[1757753764348,0.002,4720.1,4719.7,36.77388136]
[1757753764510,0.002,4720.1,4719.7,37.48819358]
[1757753764853,0.002,4720.1,4719.7,39.31025997]
[1757753765225,0.002,4720.1,4719.7,35.80425997]
[1757753765549,0.002,4720.1,4719.7,39.31025997]
[1757753769727,0.002,4720.1,4719.7,40.32328241]
[1757753770053,0.002,4720.1,4719.7,40.42888241]
[1757753774271,0.00025645,4719.8,4719.7,40.42888241]
[1757753774431,0.00025645,4719.8,4719.7,40.68795364]
[1757753775369,0.00025645,4719.8,4719.7,40.42888241]
[1757753779960,0.00025645,4719.8,4719.7,10.42888241]
[1757753780369,0.00025645,4719.8,4719.7,40.42888241]
[1757753783090,0.00025645,4719.8,4719.7,6.92288241]
[1757753783261,0.00025645,4719.8,4719.7,10.42788241]
[1757753783469,0.00025645,4719.8,4719.7,40.42788241]
[1757753784195,0.002,4720.1,4719.9,3.792]
[1757753784496,0.002,4720.1,4720.0,37.297]
[1757753784679,0.002,4720.1,4720.0,37.4026]
[1757753785006,0.002,4720.1,4720.0,37.48725044]
[1757753785167,0.002,4720.1,4720.0,45.92425044]
[1757753785493,0.002,4720.1,4720.0,52.62325044]
[1757753785909,0.002,4720.1,4720.0,51.02095044]
[1757753786507,0.002,4720.1,4720.0,50.58365044]
[1757753788509,0.002,4720.1,4720.0,50.27625044]
[1757753791609,0.002,4720.1,4720.0,20.27625044]
[1757753791912,0.002,4720.1,4720.0,50.27625044]
[1757753793664,2.3043,4720.1,4720.0,49.48425044]
[1757753793800,2.3043,4720.1,4720.0,52.13712225]
[1757753793996,0.3657625,4720.1,4720.0,52.13712225]
[1757753794201,0.002,4720.2,4720.1,3.0]
[1757753794402,0.002,4720.2,4720.1,36.505]
[1757753794602,0.2742,4720.2,4720.1,36.505]
[1757753795043,0.2742,4720.2,4720.1,37.13994549]
[1757753795829,0.2742,4720.2,4720.1,39.7928173]
[1757753796543,0.2742,4720.2,4720.1,36.2878173]
[1757753796706,0.2742,4720.2,4720.1,39.7928173]
[1757753796707,1.9274,4720.2,4720.1,39.7928173]
[1757753796908,1.9274,4720.2,4720.1,37.13994549]
[1757753798310,1.9247,4720.2,4720.1,37.13994549]
[1757753800639,0.2742,4720.2,4720.1,37.13994549]
[1757753801052,0.2742,4720.2,4720.1,33.63494549]
[1757753801206,0.2742,4720.2,4720.1,37.13994549]
[1757753801844,0.2742,4720.2,4720.1,7.13994549]
[1757753802023,0.2742,4720.2,4720.1,37.13994549]
[1757753802227,0.2742,4720.2,4720.1,33.63494549]
[1757753802429,0.2742,4720.2,4720.1,37.13994549]
[1757753802624,0.2742,4720.2,4720.1,33.63494549]
[1757753802924,0.2742,4720.2,4720.1,37.13994549]
[1757753803359,1.9247,4720.2,4720.1,37.13994549]
[1757753804113,1.9274,4720.2,4720.1,33.63494549]
[1757753804318,1.9274,4720.2,4720.1,37.13994549]
[1757753805963,1.9247,4720.2,4720.1,7.13994549]
[1757753806172,1.9247,4720.2,4720.1,37.13994549]
[1757753807491,0.002,4720.2,4720.1,40.62669794]
[1757753807683,0.002,4720.4,4720.1,40.08527817]
[1757753807889,0.002,4720.4,4720.2,40.10968113]
[1757753808412,0.002,4720.4,4720.2,40.50243533]
[1757753808975,0.002,4720.4,4720.2,10.50243533]
[1757753809190,0.002,4720.4,4720.2,39.75323533]
[1757753810282,0.002,4720.4,4720.2,36.23523533]
[1757753810473,0.002,4720.4,4720.2,39.75323533]
[1757753810968,0.0065,4720.3,4720.2,39.75323533]
[1757753811144,0.002,4720.3,4720.2,40.18813533]
[1757753812054,0.002,4720.3,4720.2,10.18813533]
[1757753812596,0.002,4720.3,4720.2,42.94203533]
[1757753812771,0.002,4720.3,4720.2,43.21308778]
[1757753813096,0.002,4720.3,4720.2,10.55913933]
[1757753813598,0.002,4720.3,4720.2,40.55913933]
[1757753816076,0.002,4720.3,4720.2,40.29842679]
[1757753816903,0.00054316,4720.4,4720.3,0.792]
[1757753817077,0.00054316,4720.4,4720.3,35.07668513]
[1757753817283,0.00054316,4720.4,4720.3,37.47348513]
[1757753817621,0.00054316,4720.4,4720.3,37.57908513]
[1757753818137,0.00054316,4720.4,4720.3,40.66372339]
[1757753819183,0.00054316,4720.4,4720.3,40.40467094]
[1757753820726,0.002,4720.7,4720.5,0.792]
[1757753820922,0.002,4720.7,4720.6,40.04863268]
[1757753821109,0.002,4720.7,4720.6,36.68543268]
[1757753821421,0.002,4720.7,4720.6,40.30306002]
[1757753823299,0.002,4720.7,4720.6,10.30306002]
[1757753823507,0.002,4720.7,4720.6,40.30306002]
[1757753825203,0.002,4720.7,4720.6,55.72706002]
[1757753826924,0.00048596,4720.9,4720.7,3.792]
[1757753827257,0.00048596,4720.9,4720.8,37.62179309]
[1757753827462,0.00048596,4720.9,4720.8,39.99741024]
[1757753828139,0.00048596,4720.9,4720.8,40.63210185]
[1757753829061,0.00048596,4720.9,4720.8,42.85910185]
[1757753829269,0.00048596,4720.9,4720.8,43.08012429]
[1757753830166,26.46465267,4726.4,4720.9,7.03870322]
[1757753830365,25.83,4726.4,4722.2,3.792]
[1757753830565,1.5307,4722.7,4722.4,3.792]
[1757753830769,25.83,4726.4,4722.7,0.1056]
[1757753830770,0.1056,4723.9,4722.7,0.1056]
[1757753831058,0.1056,4723.9,4722.7,36.6396]
[1757753831262,1.8656,4722.8,4722.7,36.6396]
[1757753831668,1.5714,4722.8,4722.7,37.2742124]
[1757753832034,1.4548,4722.8,4722.7,37.2742124]
[1757753833267,13.53,4723.6,4722.8,3.0]
[1757753833563,13.53,4723.6,4723.2,0.1056]
[1757753833868,13.53,4723.6,4723.4,3.0]
[1757753834173,1.5307,4723.5,4723.2,0.1056]
[1757753834374,1.5307,4723.5,4723.4,3.0]
[1757753834555,1.5307,4723.5,4723.4,33.0]
[1757753835162,1.5307,4723.5,4723.4,39.088]
[1757753835356,1.5307,4723.5,4723.4,45.784]
[1757753838790,1.5307,4723.5,4723.4,15.784]
[1757753838967,1.5307,4723.5,4723.4,45.784]
[1757753839567,1.5307,4723.5,4723.4,49.316]
[1757753839989,1.5307,4723.5,4723.4,49.315]
[1757753840679,1.5307,4723.5,4723.4,49.94957884]
[1757753841464,1.5307,4723.5,4723.4,49.94857884]
[1757753842818,1.5307,4723.5,4723.4,46.41857884]
[1757753843126,1.5307,4723.5,4723.4,49.94857884]
[1757753843324,1.5327,4723.5,4723.4,49.94857884]
[1757753844945,1.5327,4723.5,4723.4,46.41857884]
[1757753845705,1.5327,4723.5,4723.4,49.94757884]
[1757753850623,0.002,4723.5,4723.4,49.94757884]
[1757753851330,0.002,4723.5,4723.4,49.94657884]
[1757753854656,0.002,4723.5,4723.4,46.41857884]
[1757753854853,0.002,4723.5,4723.4,49.94457884]
[1757753855228,3.17116,4723.5,4723.4,46.41857884]
[1757753855418,3.27676,4723.5,4723.4,49.94457884]
[1757753855619,3.27676,4723.5,4723.4,46.94457884]
[1757753855821,3.27676,4723.5,4723.4,49.94457884]
[1757753856041,3.27676,4723.5,4723.4,19.94457884]
[1757753857278,3.27676,4723.5,4723.4,49.94457884]
[1757753860272,3.27676,4723.5,4723.4,46.41857884]
[1757753860471,3.27676,4723.5,4723.4,49.309]
[1757753863140,3.17116,4723.5,4723.4,49.309]
[1757753867418,1.48876,4723.5,4723.4,43.221]
[1757753867725,3.10616,4723.5,4723.4,43.221]
[1757753868128,1.48876,4723.5,4723.4,43.221]
[1757753868830,2.97756,4723.5,4723.4,43.221]
[1757753871029,1.48876,4723.5,4723.4,43.221]
[1757753873918,1.48876,4723.5,4723.4,43.222]
[1757753874246,2.97756,4723.5,4723.4,43.222]
[1757753876232,2.97756,4723.5,4723.4,43.221]
[1757753877113,1.48876,4723.5,4723.4,13.221]
[1757753878028,1.48876,4723.5,4723.4,9.696]
[1757753878213,1.48876,4723.5,4723.4,13.221]
[1757753878416,1.48876,4723.5,4723.4,43.9964]
[1757753878632,0.002,4723.5,4723.4,45.88161024]
[1757753879450,0.002,4723.5,4723.4,43.47911024]
[1757753879754,0.002,4723.5,4723.4,43.221]
[1757753880858,0.002,4723.5,4723.4,43.22]
[1757753881152,0.002,4723.5,4723.4,43.6931]
[1757753882149,0.002,4723.5,4723.4,45.91252691]
[1757753882346,13.53,4723.6,4723.5,33.31327691]
[1757753882656,13.53,4723.6,4723.5,38.95947691]
[1757753882860,13.53,4723.6,4723.5,39.26277691]
[1757753883055,13.53,4723.6,4723.5,36.35035843]
[1757753883358,13.53,4723.6,4723.5,39.89735843]
[1757753885464,13.53,4723.6,4723.5,9.89735843]
[1757753885762,13.53,4723.6,4723.5,39.89735843]
[1757753887578,13.53,4723.6,4723.5,9.89735843]
[1757753887781,13.53,4723.6,4723.5,39.89735843]
[1757753887982,13.53,4723.6,4723.5,36.35035843]
[1757753888281,13.53,4723.6,4723.5,39.89535843]
[1757753888683,13.53,4723.6,4723.5,9.89535843]
[1757753888980,13.53,4723.6,4723.5,39.89435843]
[1757753890669,13.53,4723.6,4723.5,36.35035843]
[1757753891088,13.53,4723.6,4723.5,39.89335843]
[1757753894152,13.53,4723.6,4723.5,36.35035843]
[1757753894384,13.53,4723.6,4723.5,39.89135843]
[1757753894574,13.53,4723.6,4723.5,36.35035843]
[1757753894774,13.53,4723.6,4723.5,39.89135843]
[1757753895902,13.53,4723.6,4723.5,9.89135843]
[1757753896088,13.53,4723.6,4723.5,39.89135843]
[1757753896903,13.53,4723.6,4723.5,39.88905843]
[1757753897066,13.6356,4723.6,4723.5,39.88905843]
[1757753904282,13.53,4723.6,4723.5,39.88905843]
[1757753906283,13.53,4723.6,4723.5,39.88705843]
[1757753910445,13.53,4723.6,4723.5,38.25795843]
[1757753910804,13.53,4723.6,4723.5,39.74735843]
[1757753911228,13.53,4723.6,4723.5,9.74735843]
[1757753911430,13.53,4723.6,4723.5,39.74735843]
[1757753911616,13.53,4723.6,4723.5,33.63458152]
[1757753911818,13.53,4723.6,4723.5,37.17058152]
[1757753912030,13.6356,4723.6,4723.5,37.17058152]
[1757753912502,13.6376,4723.6,4723.5,37.17058152]
[1757753912903,13.6376,4723.6,4723.5,37.48385843]
[1757753913103,13.6376,4723.6,4723.5,39.76155843]
[1757753913313,13.6376,4723.6,4723.5,9.76155843]
[1757753913514,13.6376,4723.6,4723.5,39.76155843]
[1757753913734,13.532,4723.6,4723.5,39.76155843]
[1757753922965,13.532,4723.6,4723.5,37.48385843]
[1757753923567,13.532,4723.6,4723.5,39.76155843]
[1757753924934,13.532,4723.6,4723.5,37.48385843]
[1757753925335,13.532,4723.6,4723.5,38.21975843]
[1757753925560,13.532,4723.6,4723.5,8.21975843]
[1757753925764,13.532,4723.6,4723.5,38.21975843]
[1757753926872,13.532,4723.6,4723.5,34.68875843]
[1757753927038,13.532,4723.6,4723.5,38.21975843]
[1757753927661,13.532,4723.6,4723.5,38.21875843]
[1757753929661,13.532,4723.6,4723.5,39.76165843]
[1757753932789,13.532,4723.6,4723.5,9.76165843]
[1757753933092,13.532,4723.6,4723.5,39.76165843]
[1757753933688,13.532,4723.6,4723.5,38.21875843]
[1757753935301,13.532,4723.6,4723.5,37.47585843]
[1757753936491,13.6376,4723.6,4723.5,37.16158152]
[1757753936652,13.6376,4723.6,4723.5,33.63458152]
[1757753936849,15.1804,4723.6,4723.5,33.63458152]
[1757753937069,16.82164,4723.6,4723.5,37.16358152]
[1757753939492,16.82164,4723.6,4723.5,37.16258152]
[1757753939873,15.1804,4723.6,4723.5,37.16258152]
[1757753940757,13.6376,4723.6,4723.5,37.16258152]
[1757753940970,13.6376,4723.6,4723.5,37.47585843]
[1757753944300,13.532,4723.6,4723.5,36.23755843]
[1757753944474,13.532,4723.6,4723.5,39.76355843]
[1757753951060,13.532,4723.6,4723.5,9.76355843]
[1757753951260,13.532,4723.6,4723.5,39.76355843]
[1757753951867,13.532,4723.6,4723.5,39.76455843]
[1757753952101,13.532,4723.6,4723.5,9.76455843]
[1757753952267,13.532,4723.6,4723.5,39.76455843]
[1757753953208,13.532,4723.6,4723.5,9.76455843]
[1757753953405,13.532,4723.6,4723.5,39.76455843]
[1757753954077,13.532,4723.6,4723.5,39.87015843]
[1757753954391,13.532,4723.6,4723.5,40.09118087]
[1757753957313,13.532,4723.6,4723.5,40.12118087]
[1757753957520,13.532,4723.6,4723.5,38.57828087]
[1757753958115,13.532,4723.6,4723.5,40.12508087]
[1757753959142,13.532,4723.6,4723.5,36.56908087]
[1757753959330,13.532,4723.6,4723.5,40.12408087]
[1757753959641,13.532,4723.6,4723.5,36.56908087]
[1757753959849,13.532,4723.6,4723.5,38.35625843]
[1757753961940,13.532,4723.6,4723.5,39.90305843]
[1757753962326,13.532,4723.6,4723.5,8.35625843]
[1757753962528,13.532,4723.6,4723.5,38.35625843]
[1757753963048,13.532,4723.6,4723.5,39.90205843]
[1757753965442,13.532,4723.6,4723.5,9.90205843]
[1757753965743,13.532,4723.6,4723.5,39.90205843]
[1757753966456,13.532,4723.6,4723.5,9.90205843]
[1757753966650,13.532,4723.6,4723.5,39.90205843]
[1757753969536,13.532,4723.6,4723.5,9.90205843]
[1757753969845,13.532,4723.6,4723.5,39.90205843]
[1757753970035,13.532,4723.6,4723.5,39.89805843]
[1757753972666,13.532,4723.6,4723.5,34.80125843]
[1757753972826,13.532,4723.6,4723.5,38.35025843]
[1757753973267,13.532,4723.6,4723.5,40.97651088]
[1757753973471,12.80342726,4723.6,4723.5,41.09193332]
[1757753974636,2.6e-07,4723.7,4723.6,34.61843513]
[1757753974854,2.6e-07,4723.7,4723.6,40.18733513]
[1757753975065,2.6e-07,4723.7,4723.6,40.48753513]
[1757753975360,2.6e-07,4723.7,4723.6,44.28790295]
[1757753976331,2.6e-07,4723.7,4723.6,44.37247929]
[1757753976752,2.6e-07,4723.7,4723.6,44.10642684]
[1757753977274,2.6e-07,4723.7,4723.6,40.30605902]
[1757753982117,2.6e-07,4723.7,4723.6,34.42895902]
[1757753982276,0.12730026,4723.7,4723.6,34.34795982]
[1757753982479,0.12730026,4723.7,4723.6,37.90795982]
[1757753982789,0.12730026,4723.7,4723.6,38.26657634]
[1757753983311,0.12730026,4723.7,4723.6,38.37217634]
[1757753983684,2.6e-07,4723.7,4723.6,38.68270325]
[1757753983875,2.6e-07,4723.7,4723.6,41.79580325]
[1757753984775,2.6e-07,4723.7,4723.6,44.43718673]
[1757753986032,2.6e-07,4723.7,4723.6,43.96308673]
[1757753986224,2.6e-07,4723.7,4723.6,44.42158673]
[1757753986601,2.6e-07,4723.7,4723.6,41.78020325]
[1757753987601,0.00200026,4723.7,4723.6,41.78020325]
[1757753988926,0.00200026,4723.7,4723.6,42.02205902]
[1757753990421,0.00200026,4723.7,4723.6,39.71655902]
[1757753991644,0.00200026,4723.7,4723.6,36.45275902]
[1757753991946,0.00200026,4723.7,4723.6,40.00875902]
[1757753993326,0.00200026,4723.7,4723.6,36.45275902]
[1757753993528,0.00200026,4723.7,4723.6,40.00875902]
[1757753994370,0.00200026,4723.7,4723.6,40.45415902]
[1757753994660,0.14080026,4723.7,4723.6,41.45567599]
[1757753995161,0.00200026,4723.7,4723.6,38.81295902]
[1757753995360,0.00200026,4723.7,4723.6,41.45567599]
[1757753996751,0.00200026,4723.7,4723.6,41.75187599]
[1757753996954,0.00200026,4723.7,4723.6,41.45567599]
[1757753997153,0.00200026,4723.7,4723.6,11.45567599]
[1757753997346,0.00200026,4723.7,4723.6,41.45567599]
[1757753997663,0.00200026,4723.7,4723.6,41.45428084]
[1757753998147,0.00200026,4723.7,4723.6,11.45428084]
[1757753998353,0.00200026,4723.7,4723.6,41.45428084]
[1757753998663,0.00200026,4723.7,4723.6,41.75048084]
[1757753998865,0.00200026,4723.7,4723.6,42.19588084]
[1757754000228,0.00200026,4723.7,4723.6,39.55316387]
[1757754000848,0.00200026,4723.7,4723.6,39.10776387]
[1757754001032,0.00200026,4723.7,4723.6,38.81156387]
[1757754002928,0.00200026,4723.7,4723.6,41.12646387]
[1757754003453,0.00200026,4723.7,4723.6,42.19251632]
[1757754003624,0.00200026,4723.7,4723.6,36.61981632]
[1757754003829,0.14080026,4723.7,4723.6,39.87461632]
[1757754004231,0.14080026,4723.7,4723.6,9.87461632]
[1757754004429,0.14080026,4723.7,4723.6,39.18821632]
[1757754004648,0.14080026,4723.7,4723.6,39.18921632]
[1757754004853,0.14080026,4723.7,4723.6,35.63721632]
[1757754005129,0.14080026,4723.7,4723.6,39.18921632]
[1757754005331,0.14080026,4723.7,4723.6,38.91516387]
[1757754005766,0.14080026,4723.7,4723.6,38.6733081]
[1757754006133,0.14080026,4723.7,4723.6,38.6743081]
[1757754006334,0.14080026,4723.7,4723.6,8.6743081]
[1757754006536,0.14080026,4723.7,4723.6,41.31994319]
[1757754008455,0.14080026,4723.7,4723.6,38.6743081]
[1757754011455,2.02910026,4723.7,4723.6,31.70618119]
[1757754011638,2.02910026,4723.7,4723.6,35.25618119]
[1757754011973,2.02910026,4723.7,4723.6,38.25618119]
[1757754013556,2.02910026,4723.7,4723.6,34.70618119]
[1757754013772,2.02910026,4723.7,4723.6,38.25618119]
[1757754015279,2.02910026,4723.7,4723.6,38.25818119]
[1757754016338,2.02910026,4723.7,4723.6,34.70618119]
[1757754016536,2.02910026,4723.7,4723.6,38.25718119]
[1757754019555,0.14080026,4723.7,4723.6,38.25718119]
[1757754019764,0.14080026,4723.7,4723.6,38.5677081]
[1757754023293,0.14080026,4723.7,4723.6,38.5657081]
[1757754023452,0.00200026,4723.7,4723.6,40.4296081]
[1757754023644,0.00200026,4723.7,4723.6,38.5647081]
[1757754023849,0.31700026,4723.7,4723.6,38.5647081]
[1757754024044,0.00200026,4723.7,4723.6,38.5647081]
[1757754026855,0.00200026,4723.7,4723.6,8.5647081]
[1757754027057,0.00200026,4723.7,4723.6,38.5647081]
[1757754027256,0.00200026,4723.7,4723.6,40.4296081]
[1757754027479,0.00200026,4723.7,4723.6,40.8967081]
[1757754028249,0.00200026,4723.7,4723.6,39.3450081]
[1757754028454,0.00200026,4723.7,4723.6,35.0167081]
[1757754028455,0.12990026,4723.7,4723.6,35.0167081]
[1757754028648,0.12990026,4723.7,4723.6,38.25218119]
[1757754029380,2.04740026,4723.7,4723.6,34.70618119]
[1757754029574,2.04740026,4723.7,4723.6,38.25118119]
[1757754030753,0.57250026,4723.7,4723.6,8.25118119]
[1757754030955,0.57250026,4723.7,4723.6,38.25118119]
[1757754031158,0.12990026,4723.7,4723.6,38.25118119]
[1757754033085,0.12990026,4723.7,4723.6,38.25018119]
[1757754033495,0.12990026,4723.7,4723.6,34.70618119]
[1757754033667,0.12990026,4723.7,4723.6,31.70618119]